fUST/lending_fUST_20240612
["ID","MTS","AMOUNT","RATE_DAILY","PERIOD"]
[329220817,1718187045688,-909.47,0.00016438,2]
[329220819,1718187045698,-909.47,0.00016438,2]
[329220821,1718187045712,-500.0,0.00016438,2]
[329220823,1718187045722,-500.0,0.00016438,2]
[329220825,1718187045733,-500.0,0.00016438,2]
[329220827,1718187045743,-500.0,0.00016438,2]
[329220829,1718187045754,-1292.63,0.00016438,2]
[329220831,1718187045771,-319.30675189,0.00016438,2]
[329220833,1718187045782,-489.86295763,0.00016438,2]
[329220835,1718187045793,-500.0,0.00016438,2]
[329220837,1718187045805,-265.7993025,0.00016438,2]
[329220839,1718187045816,-748.13,0.00016438,2]
[329220841,1718187045827,-500.0,0.00016438,2]
[329220843,1718187045838,-500.0,0.00016438,2]
[329220845,1718187045848,-500.0,0.00016438,2]
[329220847,1718187045859,-500.0,0.00016438,2]
[329220848,1718187045869,-500.0,0.00016438,2]
[329220850,1718187045880,-500.0,0.00016438,2]
[329220852,1718187045890,-500.0,0.00016438,2]
[329220854,1718187045901,-500.0,0.00016438,2]
[329220856,1718187045913,-500.0,0.00016438,2]
[329220858,1718187045925,-765.99,0.00016438,2]
[329220860,1718187045937,-500.0,0.00016438,2]
[329220862,1718187045948,-500.0,0.00016438,2]
[329220864,1718187045959,-500.0,0.00016438,2]
[329220866,1718187045971,-500.0,0.00016438,2]
[329220868,1718187045982,-500.0,0.00016438,2]
[329220870,1718187045993,-264.71223964,0.00016438,2]
[329220872,1718187046008,-500.0,0.00016438,2]
[329220874,1718187046019,-500.0,0.00016438,2]
[329220876,1718187046030,-6980.69,0.00016438,2]
[329220877,1718187046041,-333.0922486,0.00016438,2]
[329220879,1718187046052,-500.0,0.00016438,2]
[329220881,1718187046063,-500.0,0.00016438,2]
[329220883,1718187046076,-500.0,0.00016438,2]
[329220885,1718187046087,-500.0,0.00016438,2]
[329220887,1718187046099,-500.0,0.00016438,2]
[329220889,1718187046110,-500.0,0.00016438,2]
[329220891,1718187046121,-500.0,0.00016438,2]
[329220893,1718187046132,-500.0,0.00016438,2]
[329220895,1718187046144,-500.0,0.00016438,2]
[329220897,1718187046155,-500.0,0.00016438,2]
[329220899,1718187046166,-571.94723587,0.00016438,2]
[329220901,1718187046179,-500.0,0.00016438,2]
[329220903,1718187046189,-526.17656334,0.00016438,2]
[329220904,1718187046200,-3690.58,0.00016438,2]
[329220905,1718187046211,-510.88978252,0.00016438,2]
[329220907,1718187046222,-500.58069483,0.00016438,2]
[329220909,1718187046234,-500.0,0.00016438,2]
[329220911,1718187046245,-500.0,0.00016438,2]
[329220913,1718187046256,-500.0,0.00016438,2]
[329220914,1718187046267,-500.0,0.00016438,2]
[329220916,1718187046278,-500.0,0.00016438,2]
[329220919,1718187046289,-500.0,0.00016438,2]
[329220920,1718187046300,-500.0,0.00016438,2]
[329220922,1718187046311,-500.0,0.00016438,2]
[329220924,1718187046321,-1148.88,0.00016438,2]
[329220927,1718187046332,-500.0,0.00016438,2]
[329220929,1718187046342,-500.0,0.00016438,2]
[329220931,1718187046353,-500.0,0.00016438,2]
[329220933,1718187046365,-500.0,0.00016438,2]
[329220935,1718187046375,-501.51972479,0.00016438,2]
[329220937,1718187046386,-500.0,0.00016438,2]
[329220939,1718187046398,-500.0,0.00016438,2]
[329220941,1718187046409,-529.71477471,0.00016438,2]
[329220942,1718187046419,-500.0,0.00016438,2]
[329220944,1718187046430,-17007.97,0.00016438,2]
[329220946,1718187046441,-500.0,0.00016438,2]
[329220947,1718187046452,-500.0,0.00016438,2]
[329220949,1718187046462,-500.0,0.00016438,2]
[329220951,1718187046472,-500.0,0.00016438,2]
[329220953,1718187046483,-500.0,0.00016438,2]
[329220956,1718187046494,-500.0,0.00016438,2]
[329220958,1718187046507,-196.16288426,0.00016438,2]
[329220960,1718187046517,-510.13328018,0.00016438,2]
[329220963,1718187046528,-510.16329444,0.00016438,2]
[329220966,1718187046539,-504.44333306,0.00016438,2]
[329220968,1718187046551,-516.86107398,0.00016438,2]
[329220971,1718187046589,-500.0,0.00016438,2]
[329220974,1718187046602,-925.1,0.00016438,2]
[329220977,1718187046612,-500.0,0.00016438,2]
[329220979,1718187046623,-616.3580274,0.00016438,2]
[329220982,1718187046634,-500.0,0.00016438,2]
[329220985,1718187046644,-11708.92,0.00016438,2]
[329220987,1718187046655,-528.24046613,0.00016438,2]
[329220990,1718187046666,-500.0,0.00016438,2]
[329220993,1718187046676,-500.0,0.00016438,2]
[329220996,1718187046687,-500.0,0.00016438,2]
[329220998,1718187046698,-500.0,0.00016438,2]
[329221001,1718187046708,-500.0,0.00016438,2]
[329221003,1718187046718,-500.0,0.00016438,2]
[329221006,1718187046729,-500.0,0.00016438,2]
[329221009,1718187046739,-500.0,0.00016438,2]
[329221011,1718187046751,-3470.08,0.00016438,2]
[329221014,1718187046765,-500.0,0.00016438,2]
[329221017,1718187046775,-186.00261143,0.00016438,2]
[329221020,1718187046786,-500.0,0.00016438,2]
[329221023,1718187046796,-500.0,0.00016438,2]
[329221025,1718187046806,-500.0,0.00016438,2]
[329221027,1718187046817,-3306.75,0.00016438,2]
[329221030,1718187046828,-500.0,0.00016438,2]
[329221032,1718187046839,-500.0,0.00016438,2]
[329221035,1718187046850,-500.0,0.00016438,2]
[329221038,1718187046860,-500.0,0.00016438,2]
[329221041,1718187046870,-500.0,0.00016438,2]
[329221043,1718187046881,-500.0,0.00016438,2]
[329221046,1718187046891,-500.0,0.00016438,2]
[329221049,1718187046902,-500.0,0.00016438,2]
[329221051,1718187046913,-500.0,0.00016438,2]
[329221054,1718187046922,-605.12985328,0.00016438,2]
[329221057,1718187046933,-502.24837034,0.00016438,2]
[329221060,1718187046943,-500.0,0.00016438,2]
[329221062,1718187046953,-501.42500524,0.00016438,2]
[329221065,1718187046964,-500.72636467,0.00016438,2]
[329221067,1718187046974,-500.0,0.00016438,2]
[329221069,1718187046986,-500.0,0.00016438,2]
[329221071,1718187046996,-275.71709057,0.000165,2]
[329221073,1718187047009,-155.01550155,0.00016711,2]
[329221075,1718187047019,-909.47,0.00016711,2]
[329221077,1718187047029,-909.47,0.00016711,2]
[329221079,1718187047040,-282.04,0.00016711,2]
[329221081,1718187047050,-500.0,0.00016711,2]
[329221083,1718187047060,-500.0,0.00016711,2]
[329221085,1718187047071,-500.0,0.00016712,2]
[329221087,1718187047081,-517.09568311,0.00016712,2]
[329221089,1718187047092,-500.0,0.00016712,2]
[329221091,1718187047103,-500.0,0.00016712,2]
[329221093,1718187047113,-582.76,0.00016712,2]
[329221095,1718187047124,-519.95,0.00016712,2]
[329221097,1718187047135,-500.0,0.00016712,2]
[329221099,1718187047145,-500.0,0.00016712,4]
[329221101,1718187047156,-500.0,0.00016712,2]
[329221103,1718187047167,-500.0,0.00016712,2]
[329221105,1718187047179,-500.0,0.00016712,2]
[329221107,1718187047190,-500.0,0.00016712,2]
[329221109,1718187047200,-504.94811632,0.00016712,2]
[329221111,1718187047210,-250.0,0.00016712,2]
[329221113,1718187047220,-500.0,0.00016712,2]
[329221115,1718187047231,-500.0,0.00016712,2]
[329221117,1718187047241,-385.07062156,0.00016712,2]
[329221119,1718187047252,-500.0,0.00016712,2]
[329221121,1718187047266,-417.74192415,0.00016712,2]
[329221123,1718187047276,-500.0,0.00016712,2]
[329221125,1718187047291,-500.0,0.00016712,2]
[329221127,1718187047301,-500.0,0.00016712,2]
[329221129,1718187047311,-500.0,0.00016712,2]
[329221131,1718187047322,-500.0,0.00016712,2]
[329221133,1718187047332,-503.39915285,0.00016712,2]
[329221135,1718187047344,-544.83215869,0.00016712,2]
[329221137,1718187047354,-502.82200852,0.00016712,2]
[329221139,1718187047365,-500.0,0.00016712,2]
[329221141,1718187047375,-322.04156391,0.00016712,2]
[329221143,1718187047387,-505.85200488,0.00016712,2]
[329221145,1718187047397,-500.0,0.00016712,2]
[329221147,1718187047408,-500.0,0.00016712,2]
[329221149,1718187047419,-500.0,0.00016712,2]
[329221151,1718187047430,-500.0,0.00016712,2]
[329221153,1718187047441,-500.0,0.00016712,2]
[329221155,1718187047453,-460.17387737,0.00016712,2]
[329221157,1718187047462,-500.0,0.00016712,2]
[329221158,1718187047473,-500.0,0.00016712,2]
[329221160,1718187047484,-500.0,0.00016712,2]
[329221162,1718187047495,-500.0,0.00016712,2]
[329221163,1718187047507,-500.0,0.00016712,2]
[329221165,1718187047517,-500.0,0.00016712,2]
[329221167,1718187047529,-503.14175203,0.00016712,2]
[329221169,1718187047544,-500.0,0.00016712,2]
[329221171,1718187047569,-500.0,0.00016712,2]
[329221173,1718187047593,-500.0,0.00016712,2]
[329221175,1718187047605,-504.51790088,0.00016712,2]
[329221177,1718187047617,-500.0,0.00016712,2]
[329221179,1718187047628,-500.0,0.00016712,2]
[329221181,1718187047638,-500.0,0.00016712,2]
[329221184,1718187047654,-500.0,0.00016712,2]
[329221185,1718187047671,-500.0,0.00016712,2]
[329221187,1718187047683,-500.0,0.00016712,2]
[329221189,1718187047694,-501.74103468,0.00016712,2]
[329221191,1718187047705,-500.0,0.00016712,2]
[329221193,1718187047716,-500.0,0.00016712,2]
[329221195,1718187047728,-500.0,0.00016712,2]
[329221196,1718187047738,-500.0,0.00016712,2]
[329221198,1718187047748,-500.0,0.00016712,2]
[329221200,1718187047762,-539.31,0.00016712,2]
[329221202,1718187047772,-500.0,0.00016712,2]
[329221204,1718187047783,-500.0,0.00016712,2]
[329221206,1718187047795,-500.0,0.00016712,2]
[329221208,1718187047805,-500.0,0.00016712,2]
[329221210,1718187047815,-379.35208139,0.00016712,2]
[329221212,1718187047825,-506.86,0.00016712,2]
[329221214,1718187047836,-500.0,0.00016712,2]
[329221216,1718187047847,-521.32724151,0.00016712,2]
[329221218,1718187047858,-500.0,0.00016712,2]
[329221220,1718187047868,-500.0,0.00016712,2]
[329221222,1718187047879,-500.0,0.00016712,2]
[329221224,1718187047890,-500.0,0.00016712,2]
[329221226,1718187047901,-500.0,0.00016712,2]
[329221228,1718187047912,-500.0,0.00016712,2]
[329221230,1718187047923,-500.0,0.00016712,2]
[329221232,1718187047934,-500.0,0.00016712,2]
[329221234,1718187047945,-500.0,0.00016712,2]
[329221236,1718187047956,-500.0,0.00016712,2]
[329221238,1718187047967,-500.0,0.00016712,2]
[329221240,1718187047978,-500.0,0.00016712,2]
[329221242,1718187047988,-354.19342237,0.00016712,2]
[329221244,1718187047999,-500.0,0.00016712,2]
[329221246,1718187048011,-500.0,0.00016712,2]
[329221248,1718187048022,-500.0,0.00016712,2]
[329221250,1718187048033,-500.0,0.00016712,2]
[329221252,1718187048044,-500.0,0.00016712,2]
[329221254,1718187048056,-500.0,0.00016712,2]
[329221257,1718187048067,-500.0,0.00016712,2]
[329221259,1718187048077,-500.0,0.00016712,2]
[329221261,1718187048088,-500.0,0.00016712,2]
[329221262,1718187048099,-500.0,0.00016712,2]
[329221264,1718187048110,-500.0,0.00016712,2]
[329221266,1718187048122,-500.0,0.00016712,2]
[329221268,1718187048133,-500.0,0.00016712,2]
[329221270,1718187048144,-500.0,0.00016712,2]
[329221272,1718187048155,-877.49,0.00016712,2]
[329221274,1718187048167,-500.0,0.00016712,2]
[329221276,1718187048178,-500.0,0.00016712,2]
[329221278,1718187048190,-1566.56,0.00016712,2]
[329221280,1718187048202,-500.0,0.00016712,2]
[329221281,1718187048213,-500.0,0.00016712,2]
[329221283,1718187048224,-1292.63,0.00016712,2]
[329221285,1718187048236,-500.0,0.00016712,2]
[329221288,1718187048249,-748.13,0.00016712,2]
[329221289,1718187048262,-165.58453899,0.00016712,2]
[329221292,1718187048273,-505.67910671,0.00016712,2]
[329221293,1718187048285,-500.0,0.00016712,2]
[329221295,1718187048296,-765.99,0.00016712,2]
[329221298,1718187048308,-500.0,0.00016712,2]
[329221300,1718187048318,-500.0,0.00016712,2]
[329221302,1718187048329,-500.0,0.00016712,2]
[329221304,1718187048339,-500.0,0.00016712,2]
[329221306,1718187048351,-6980.69,0.00016712,2]
[329221308,1718187048361,-208.08999013,0.00016712,2]
[329221310,1718187048373,-500.0,0.00016712,2]
[329221312,1718187048384,-500.0,0.00016712,2]
[329221314,1718187048394,-3690.58,0.00016712,2]
[329221316,1718187048406,-500.0,0.00016712,2]
[329221318,1718187048417,-1148.88,0.00016712,2]
[329221320,1718187048427,-500.0,0.00016712,2]
[329221322,1718187048438,-500.0,0.00016712,2]
[329221324,1718187048449,-500.0,0.00016712,2]
[329221326,1718187048459,-500.0,0.00016712,2]
[329221328,1718187048470,-502.93715686,0.00016712,2]
[329221330,1718187048480,-17007.97,0.00016712,2]
[329221332,1718187048490,-500.0,0.00016712,2]
[329221334,1718187048501,-500.0,0.00016712,2]
[329221335,1718187048512,-506.32843551,0.00016712,2]
[329221338,1718187048522,-925.1,0.00016712,2]
[329221339,1718187048533,-500.0,0.00016712,2]
[329221341,1718187048547,-11708.92,0.00016712,2]
[329221344,1718187048576,-500.0,0.00016712,2]
[329221346,1718187048587,-513.50225528,0.00016712,2]
[329221347,1718187048597,-404.57647126,0.00016712,2]
[329221348,1718187048608,-298.30170961,0.00016712,2]
[329221349,1718187048619,-3470.08,0.00016712,2]
[329221351,1718187048631,-500.0,0.00016712,2]
[329221354,1718187048642,-500.0,0.00016712,2]
[329221356,1718187048654,-3306.75,0.00016712,2]
[329221358,1718187048665,-500.0,0.00016712,2]
[329221360,1718187048676,-504.55603488,0.00016712,2]
[329221362,1718187048686,-500.0,0.00016712,2]
[329221364,1718187048697,-500.0,0.00016712,2]
[329221366,1718187048707,-500.0,0.00016712,2]
[329221368,1718187048717,-500.0,0.00016712,2]
[329221370,1718187048727,-932.75459393,0.00016818,2]
[329221372,1718187048737,-909.47,0.00016985,2]
[329221374,1718187048748,-909.47,0.00016985,2]
[329221376,1718187048760,-500.0,0.00016985,2]
[329221378,1718187048771,-558.2,0.00016985,2]
[329221380,1718187048782,-500.0,0.00016986,2]
[329221382,1718187048792,-293.70863923,0.00016986,2]
[329221384,1718187048802,-500.0,0.00016986,4]
[329221386,1718187048822,-500.0,0.00016986,2]
[329221388,1718187048833,-385.1562546,0.00016986,2]
[329221390,1718187048843,-579.25709453,0.00016986,2]
[329221392,1718187048854,-500.0,0.00016986,2]
[329221394,1718187048864,-250.0,0.00016986,2]
[329221396,1718187048875,-254.06280767,0.00016986,2]
[329221398,1718187048885,-500.0,0.00016986,2]
[329221400,1718187048896,-500.0,0.00016986,2]
[329221402,1718187048907,-500.0,0.00016986,2]
[329221404,1718187048917,-580.86070805,0.00016986,2]
[329221406,1718187048928,-500.0,0.00016986,2]
[329221408,1718187048938,-500.0,0.00016986,2]
[329221410,1718187048949,-503.59991317,0.00016986,2]
[329221412,1718187048960,-500.0,0.00016986,2]
[329221414,1718187048971,-500.0,0.00016986,2]
[329221416,1718187048981,-500.0,0.00016986,2]
[329221418,1718187048992,-500.0,0.00016986,2]
[329221421,1718187049004,-500.0,0.00016986,2]
[329221423,1718187049017,-500.0,0.00016986,2]
[329221424,1718187049027,-510.86191059,0.00016986,2]
[329221427,1718187049038,-500.0,0.00016986,2]
[329221429,1718187049048,-500.0,0.00016986,2]
[329221430,1718187049059,-357.27971404,0.00016986,2]
[329221433,1718187049072,-181.01723756,0.00016986,2]
[329221435,1718187049082,-500.0,0.00016986,2]
[329221437,1718187049093,-500.0,0.00016986,2]
[329221439,1718187049104,-376.9499464,0.00016986,2]
[329221441,1718187049115,-539.31,0.00016986,2]
[329221443,1718187049126,-500.0,0.00016986,2]
[329221445,1718187049136,-500.0,0.00016986,2]
[329221447,1718187049147,-500.0,0.00016986,2]
[329221449,1718187049157,-500.0,0.00016986,2]
[329221451,1718187049168,-506.86,0.00016986,2]
[329221453,1718187049180,-456.30704182,0.00016986,2]
[329221455,1718187049191,-500.0,0.00016986,2]
[329221457,1718187049202,-500.0,0.00016986,2]
[329221459,1718187049212,-500.0,0.00016986,2]
[329221461,1718187049223,-500.0,0.00016986,2]
[329221463,1718187049234,-500.0,0.00016986,2]
[329221465,1718187049244,-500.0,0.00016986,2]
[329221467,1718187049255,-500.0,0.00016986,2]
[329221469,1718187049268,-500.0,0.00016986,2]
[329221471,1718187049279,-500.0,0.00016986,2]
[329221473,1718187049289,-500.0,0.00016986,2]
[329221475,1718187049300,-264.33269807,0.00016986,2]
[329221477,1718187049310,-500.0,0.00016986,2]
[329221479,1718187049322,-318.1967511,0.00016986,2]
[329221481,1718187049333,-877.49,0.00016986,2]
[329221483,1718187049344,-500.0,0.00016986,2]
[329221485,1718187049355,-500.0,0.00016986,2]
[329221487,1718187049367,-1566.56,0.00016986,2]
[329221489,1718187049378,-500.0,0.00016986,2]
[329221491,1718187049388,-500.0,0.00016986,2]
[329221493,1718187049399,-1292.63,0.00016986,2]
[329221495,1718187049409,-500.0,0.00016986,2]
[329221497,1718187049420,-748.13,0.00016986,2]
[329221513,1718187049594,-500.0,0.00016986,2]
[329221515,1718187049605,-765.99,0.00016986,2]
[329221517,1718187049619,-502.72338017,0.00016986,2]
[329221519,1718187049630,-500.0,0.00016986,2]
[329221521,1718187049641,-500.0,0.00016986,2]
[329221523,1718187049654,-500.0,0.00016986,2]
[329221525,1718187049664,-6980.69,0.00016986,2]
[329221527,1718187049674,-507.74603429,0.00016986,2]
[329221529,1718187049685,-500.0,0.00016986,2]
[329221531,1718187049696,-3690.58,0.00016986,2]
[329221533,1718187049707,-500.0,0.00016986,2]
[329221535,1718187049719,-1148.88,0.00016986,2]
[329221537,1718187049730,-500.0,0.00016986,2]
[329221539,1718187049740,-500.0,0.00016986,2]
[329221541,1718187049750,-17007.97,0.00016986,2]
[329221543,1718187049762,-500.0,0.00016986,2]
[329221545,1718187049772,-925.1,0.00016986,2]
[329221547,1718187049783,-500.0,0.00016986,2]
[329221548,1718187049795,-11708.92,0.00016986,2]
[329221549,1718187049808,-500.0,0.00016986,2]
[329221550,1718187049823,-3470.08,0.00016986,2]
[329221551,1718187049834,-500.0,0.00016986,2]
[329221552,1718187049845,-262.28007136,0.00016986,2]
[329221553,1718187049857,-3306.75,0.00016986,2]
[329221554,1718187049868,-500.0,0.00016986,2]
[329221555,1718187049879,-500.0,0.00016986,2]
[329221556,1718187049890,-2000.0,0.00017,2]
[329221557,1718187049902,-909.47,0.00017259,2]
[329221558,1718187049912,-909.47,0.00017259,2]
[329221559,1718187049923,-511.06814897,0.0001726,2]
[329221560,1718187049936,-500.0,0.0001726,4]
[329221561,1718187049948,-250.0,0.0001726,2]
[329221562,1718187049959,-500.0,0.0001726,2]
[329221563,1718187049973,-500.0,0.0001726,2]
[329221564,1718187049986,-500.0,0.0001726,2]
[329221565,1718187049998,-500.0,0.0001726,2]
[329221567,1718187050010,-500.0,0.0001726,2]
[329221569,1718187050021,-500.0,0.0001726,2]
[329221571,1718187050033,-500.0,0.0001726,2]
[329221573,1718187050044,-500.0,0.0001726,2]
[329221575,1718187050055,-500.0,0.0001726,2]
[329221577,1718187050066,-539.31,0.0001726,2]
[329221579,1718187050076,-500.0,0.0001726,2]
[329221581,1718187050087,-500.0,0.0001726,2]
[329221583,1718187050097,-506.86,0.0001726,2]
[329221586,1718187050117,-500.0,0.0001726,2]
[329221587,1718187050130,-500.0,0.0001726,2]
[329221588,1718187050142,-500.0,0.0001726,2]
[329221589,1718187050154,-500.0,0.0001726,2]
[329221590,1718187050165,-500.0,0.0001726,2]
[329221591,1718187050177,-877.49,0.0001726,2]
[329221592,1718187050187,-500.0,0.0001726,2]
[329221593,1718187050199,-500.0,0.0001726,2]
[329221594,1718187050210,-1566.56,0.0001726,2]
[329221595,1718187050221,-500.0,0.0001726,2]
[329221596,1718187050232,-1292.63,0.0001726,2]
[329221597,1718187050242,-500.0,0.0001726,2]
[329221598,1718187050253,-748.13,0.0001726,2]
[329221599,1718187050266,-500.0,0.0001726,2]
[329221600,1718187050278,-765.99,0.0001726,2]
[329221601,1718187050290,-500.0,0.0001726,2]
[329221602,1718187050300,-500.0,0.0001726,2]
[329221603,1718187050312,-500.0,0.0001726,2]
[329221604,1718187050325,-6980.69,0.0001726,2]
[329221606,1718187050337,-500.0,0.0001726,2]
[329221608,1718187050348,-3690.58,0.0001726,2]
[329221609,1718187050359,-294.89911392,0.0001726,2]
[329221610,1718187050370,-1148.88,0.0001726,2]
[329221611,1718187050382,-500.0,0.0001726,2]
[329221612,1718187050393,-17007.97,0.0001726,2]
[329221614,1718187050404,-500.0,0.0001726,2]
[329221615,1718187050415,-925.1,0.0001726,2]
[329221616,1718187050426,-500.0,0.0001726,2]
[329221617,1718187050437,-11708.92,0.0001726,2]
[329221618,1718187050448,-3470.08,0.0001726,2]
[329221619,1718187050459,-3306.75,0.0001726,2]
[329221620,1718187050470,-500.0,0.0001726,2]
[329221621,1718187050481,-500.0,0.0001726,2]
[329221622,1718187050492,-932.75459393,0.00017297,2]
[329221623,1718187050503,-909.47,0.00017533,2]
[329221624,1718187050517,-500.0,0.00017534,4]
[329221625,1718187050528,-250.0,0.00017534,2]
[329221626,1718187050540,-500.0,0.00017534,2]
[329221627,1718187050550,-500.0,0.00017534,2]
[329221628,1718187050588,-335.12,0.00017534,2]
[329221629,1718187050601,-500.0,0.00017534,2]
[329221630,1718187050612,-500.0,0.00017534,2]
[329221631,1718187050623,-170.10079905,0.00017534,2]
[329221632,1718187050635,-539.31,0.00017534,2]
[329221633,1718187050645,-500.0,0.00017534,2]
[329221635,1718187050657,-500.0,0.00017534,2]
[329221637,1718187050668,-506.86,0.00017534,2]
[329221639,1718187050679,-500.0,0.00017534,2]
[329221641,1718187050690,-500.0,0.00017534,2]
[329221643,1718187050700,-500.0,0.00017534,2]
[329221645,1718187050710,-160.34758777,0.00017534,2]
[329221647,1718187050721,-877.49,0.00017534,2]
[329221649,1718187050733,-500.0,0.00017534,2]
[329221651,1718187050744,-298.41,0.00017534,2]
[329221653,1718187050755,-1566.56,0.00017534,2]
[329221655,1718187050769,-500.0,0.00017534,2]
[329221657,1718187050780,-1292.63,0.00017534,2]
[329221659,1718187050790,-500.0,0.00017534,2]
[329221661,1718187050802,-748.13,0.00017534,2]
[329221662,1718187050813,-500.0,0.00017534,2]
[329221663,1718187050824,-765.99,0.00017534,2]
[329221664,1718187050835,-599.88311515,0.00017534,2]
[329221665,1718187050847,-500.0,0.00017534,2]
[329221666,1718187050858,-500.0,0.00017534,2]
[329221667,1718187050869,-6980.69,0.00017534,2]
[329221669,1718187050880,-588.10580168,0.00017534,2]
[329221671,1718187050890,-3690.58,0.00017534,2]
[329221673,1718187050902,-1148.88,0.00017534,2]
[329221675,1718187050912,-500.0,0.00017534,2]
[329221677,1718187050923,-17007.97,0.00017534,2]
[329221679,1718187050933,-500.0,0.00017534,2]
[329221681,1718187050944,-925.1,0.00017534,2]
[329221683,1718187050955,-500.0,0.00017534,2]
[329221685,1718187050966,-11708.92,0.00017534,2]
[329221687,1718187050977,-3470.08,0.00017534,2]
[329221689,1718187050987,-3306.75,0.00017534,2]
[329221691,1718187050998,-500.0,0.00017534,2]
[329221693,1718187051010,-516.88891639,0.00017534,2]
[329221695,1718187051020,-932.75459393,0.00017777,2]
[329221697,1718187051030,-909.47,0.00017807,2]
[329221699,1718187051041,-500.0,0.00017808,4]
[329221701,1718187051052,-250.0,0.00017808,2]
[329221703,1718187051062,-500.0,0.00017808,2]
[329221705,1718187051073,-500.0,0.00017808,2]
[329221707,1718187051083,-267.2,0.00017808,2]
[329221708,1718187051094,-539.31,0.00017808,2]
[329221710,1718187051105,-500.0,0.00017808,2]
[329221712,1718187051115,-500.0,0.00017808,2]
[329221714,1718187051126,-506.86,0.00017808,2]
[329221716,1718187051136,-500.0,0.00017808,2]
[329221719,1718187051148,-234.66756291,0.00017808,2]
[329221720,1718187051159,-500.0,0.00017808,2]
[329221722,1718187051169,-877.49,0.00017808,2]
[329221724,1718187051180,-1566.56,0.00017808,2]
[329221726,1718187051190,-500.0,0.00017808,2]
[329221728,1718187051201,-1292.63,0.00017808,2]
[329221730,1718187051212,-500.0,0.00017808,2]
[329221732,1718187051224,-748.13,0.00017808,2]
[329221734,1718187051236,-765.99,0.00017808,2]
[329221736,1718187051247,-500.0,0.00017808,2]
[329221738,1718187051259,-344.81526891,0.00017808,2]
[329221740,1718187051271,-6980.69,0.00017808,2]
[329221742,1718187051282,-3690.58,0.00017808,2]
[329221744,1718187051293,-1148.88,0.00017808,2]
[329221746,1718187051304,-500.0,0.00017808,2]
[329221749,1718187051317,-17007.97,0.00017808,2]
[329221750,1718187051327,-500.0,0.00017808,2]
[329221752,1718187051338,-925.1,0.00017808,2]
[329221754,1718187051349,-500.0,0.00017808,2]
[329221756,1718187051360,-11708.92,0.00017808,2]
[329221758,1718187051371,-3470.08,0.00017808,2]
[329221760,1718187051381,-3306.75,0.00017808,2]
[329221762,1718187051392,-201.96909075,0.00017808,2]
[329221764,1718187051403,-10491.92816074,0.00017898,2]
[329221766,1718187051413,-155.00620025,0.00018,2]
[329221768,1718187051424,-632.99963654,0.00018,2]
[329221770,1718187051436,-876.82850055,0.00018,2]
[329221772,1718187051447,-2765.44251206,0.00018,2]
[329221774,1718187051457,-1355.61945113,0.00018,2]
[329221776,1718187051469,-155.02790502,0.00018,2]
[329221778,1718187051480,-909.47,0.00018081,2]
[329221780,1718187051490,-909.47,0.00018081,2]
[329221782,1718187051501,-500.0,0.00018082,4]